[Event "Israeli Team-ch 2023"]
[Site "Petah Tikva"]
[Date "2023.05.05"]
[Round "9.23"]
[White "Kaspi, Alexander"]
[Black "Lurie, Michael"]
[Result "0-1"]
[ECO "E60"]
[WhiteElo "2412"]
[BlackElo "2295"]
[Annotator "TA"]
[PlyCount "52"]
[EventDate "2023.01.13"]
[EventCountry "ISR"]
[SourceTitle "playchess.com"]
[Source "ChessBase"]
[SourceQuality "1"]
[TimeControl "40/5400+30:1800+30"]

{[%evp 9,52,47,66,33,73,81,70,82,109,89,102,101,110,107,191,169,184,185,181,180,163,188,191,151,142,87,111,84,112,18,36,0,0,0,0,0,0,-786,-753,-29988,-29989,-29991,-29992,-29992,-29993]} 1. d4 {[%emt 0:00:34]} Nf6 {[%emt 0:00:05]} 2. c4 {[%emt 0:00:05]} g6 {[%emt 0:00:05]} 3. f3 {[%emt 0:00:50]} e5 {[%emt 0:00:07]} 4. dxe5 {[%emt 0:00:34]} Nh5 {[%emt 0:00:06]} 5. Nh3 {[%emt 0:00:18]} Nc6 {[%emt 1:32:37]} ({Much less strong is} 5... Qh4+ 6. Nf2 $16 (6. g3 Qxc4 7. Nc3 Nc6 $16)) 6. g4 {[%emt 1:31:09] E60: King's Indian: Unusual lines and Fianchetto Variation without Nc3.} (6. Bg5 $5 {[%cal Rg5d8]} Be7 7. Bxe7 Qxe7 8. Nc3 $14) 6... Qh4+ {[%emt 0:00:00]} 7. Nf2 $1 {[%emt 0:00:00]} Bc5 {[%emt 0:00:00]} 8. e3 {[%emt 0:00:00] White is slightly better.} Nf4 {[%emt 0:00:00]} 9. a3 $1 {[%emt 0:00:00]} a5 {[%emt 0:00:00]} (9... Nxe5 $2 10. b4 b6 11. bxc5 $18) 10. Nc3 {[%emt 0:00:00][%cal Bb1c3,Bc3e4,Be4c5][%mdl 32]} Ne6 {[%emt 0:00:00][%cal Bf4e6,Be6g5,Bg5e4][%mdl 32]} (10... Nxe5 $2 11. Nce4 Ne6 12. f4 $16) 11. Nce4 {[%emt 0:00:00]} ({Reject} 11. Qd5 $6 b6 $11) 11... Nxe5 {[%emt 0:00:00]} (11... Be7 $16 {keeps fighting.}) 12. f4 $1 $18 {[%emt 0:00:00] [#]} Nc6 $146 {[%emt 0:00:00]} ({Predecessor:} 12... f5 13. gxf5 gxf5 14. Nxc5 Ng4 15. Ncd3 Nc5 16. Qf3 Ne4 17. Qh3 Qe7 18. Qh5+ Kd8 19. Nxg4 fxg4 20. Nf2 d6 21. Nxe4 Qxe4 22. Qd5 {1-0 Karthikeyan,P (2397)-Gahan,M (2223) Mumbai Mayors Cup 7th 2014 (6)}) 13. f5 $1 {[%emt 0:00:00]} gxf5 {[%emt 0:00:00]} 14. gxf5 {[%emt 0:00:00]} Ng5 {[%emt 0:00:00]} 15. Nxc5 {[%emt 0:00:00] Hoping for Rg1.} d6 {[%emt 0:00:00]} 16. Ncd3 {[%emt 0:00:00] Threatens to win with Qg4.} Bxf5 {[%emt 0:00:00][%cal Of5e4]} 17. Bg2 {[%emt 0:00:00]} (17. e4 $142 Nxe4 18. Be3) 17... O-O-O {[%emt 0:00:00][%cal Be8c8,Bc8d7,Bd7d8][%mdl 32]} 18. Nf4 {[%emt 0:00:00] Qh5 is the strong threat.} Ne4 {[%emt 0:00:00][%csl Ge4][%cal Rh4f2]} 19. O-O {[%emt 0:00:00]} (19. Rf1 $16 {Black must now prevent Qd5.} Nxf2 20. Rxf2) 19... Rhg8 $11 {[%emt 0:00:00]} 20. Qd5 {[%emt 0:00:00] Wards off Ne5} (20. Bd2 $5 Rg5 21. Be1 $16) 20... Ne7 {[%emt 0:00:00]} 21. Qxa5 {[%emt 0:00:00] And now Bd2 would win.} Rg5 $40 {[%emt 0:00:00][%mdl 128] Black is up to no good.} 22. Qa8+ {[%emt 0:00:00]} Kd7 {[%emt 0:00:00] Chess con chili.} 23. Qxb7 {[%emt 0:00:00][%mdl 8192] [#]} (23. Qa4+ $11 Kc8 24. b4) 23... Rdg8 $1 $19 {[%emt 0:00:00][%cal Oh4f4] ( -> ...Qxf4!)} 24. Qb5+ {[%emt 0:00:00] [#]} (24. Qxe4 Bxe4) 24... Kd8 $1 {[%emt 0:00:00] Black mates.} 25. Nxe4 {[%emt 0:06:38]} Rxg2+ {[%emt 0:00:00]} 26. Nxg2 {[%emt 0:00:15]} Bxe4 {[%emt 0:00:00] Magnificent play by Lurie!   Weighted Error Value: White=0.60/Black=0.10 (very precise)} 0-1

[Event "Israeli Team-ch 2023"]
[Site "Petah Tikva"]
[Date "2023.05.05"]
[Round "9.24"]
[White "Levin, Yonatan"]
[Black "Veinberg, Nimrod"]
[Result "0-1"]
[ECO "A14"]
[WhiteElo "2175"]
[BlackElo "2400"]
[Annotator "TA"]
[PlyCount "64"]
[EventDate "2023.01.13"]
[EventCountry "ISR"]
[SourceTitle "playchess.com"]
[Source "ChessBase"]
[SourceQuality "1"]
[TimeControl "40/5400+30:1800+30"]

{[%evp 21,64,8,19,0,52,67,63,29,18,14,37,-4,33,0,229,164,145,79,94,1,53,54,120,0,0,0,7,0,0,0,0,-36,-25,-43,0,0,0,0,0,0,0,-427,-426,-29993,-29994]} 1. c4 {[%emt 0:00:03]} e6 {[%emt 0:04:24]} 2. g3 {[%emt 0:00:04]} d5 {[%emt 0:00:06]} 3. Bg2 {[%emt 0:00:23]} Nf6 {[%emt 0:00:18]} 4. Nf3 {[%emt 0:00:06]} Be7 {[%emt 1:27:42]} 5. O-O {[%emt 0:00:22]} O-O {[%emt 0:00:00]} 6. b3 {[%emt 0:00:12]} b6 {[%emt 0:00:00]} 7. Bb2 {[%emt 0:00:03]} Bb7 {[%emt 0:00:00]} 8. e3 {[%emt 0:01:11]} c5 {[%emt 0:00:00]} 9. Nc3 {[%emt 0:02:26]} Nbd7 {[%emt 0:00:00]} 10. Qe2 {[%emt 0:06:39]} Rc8 {[%emt 0:00:00]} 11. Rfd1 {[%emt 0:00:26]} Qc7 {[%emt 0:00:00]} 12. cxd5 {[%emt 0:04:36] A14: English Opening: 1...e6 with b3 by White.} exd5 {[%emt 0:00:00]} (12... Nxd5 $11 13. Nxd5 Bxd5) 13. d4 {[%emt 0:00:28]} Rfe8 {[%emt 0:00:00] [#]} 14. Nb5 $146 {[%emt 0:10:55] White is slightly better.} ({Predecessor:} 14. Rac1 Qb8 15. Bh3 Rcd8 16. Bg2 Bf8 17. Qc2 h6 18. Qb1 a6 19. Ne2 c4 20. Ne5 {1-0 Wadsworth,M (2420)-Bradbury,N (2241) Newcastle Forest Hall 2nd 2021 (3)}) 14... Qb8 {[%emt 0:00:00]} 15. Ne5 {[%emt 0:00:03]} Rcd8 {[%emt 0:00:00]} 16. f4 {[%emt 0:19:50]} Nf8 {[%emt 0:00:00]} (16... a6 $5 {[%cal Ra6b5]} 17. Na3 cxd4 $11) 17. a4 {[%emt 0:10:49]} Ne4 $2 {[%emt 0:00:00]} (17... Ne6 $11 {and Black stays safe.}) 18. dxc5 {[%emt 0:06:59]} (18. Qh5 $6 Ng6 $16) 18... Nxc5 {[%emt 0:00:00]} 19. Qh5 {[%emt 0:07:29]} ({White should try} 19. Nd4) 19... f6 $16 {[%emt 0:00:00]} 20. Qf7+ {[%emt 0:13:13]} Kh8 {[%emt 0:00:00]} 21. b4 $1 {[%emt 0:00:01]} Na6 {[%emt 0:00:00] [#]} (21... Nce6 $1 $14) 22. Rac1 {[%emt 0:09:49]} Bxb4 $11 {[%emt 0:00:00]} 23. Nc6 {[%emt 0:00:00]} (23. Bxd5 Rxd5 24. Rxd5 Re7 $17) 23... Bxc6 {[%emt 0:00:00]} 24. Rxc6 {[%emt 0:00:01][%cal Ob2f6] And now Bxf6! would win.} Rd7 {[%emt 0:00:00]} 25. Qh5 $40 {[%emt 0:00:47][%mdl 128] Black must now prevent Bh3. White mounts an attack.} Bc5 $1 {[%emt 0:00:00] ...Nb4 would be deadly.} 26. Rxf6 {[%emt 0:03:50][%mdl 64] Demolition} Rxe3 {[%emt 0:05:07][%cal Re3e1]} 27. Kh1 {[%emt 0:00:01][%cal Og2h3]} gxf6 {[%emt 0:02:22]} 28. Bxf6+ {[%emt 0:00:01] A strong pair of Bishops.} Kg8 $1 {[%emt 0:00:26]} 29. Bxd5+ {[%emt 0:02:37]} (29. Rxd5 $2 {loses.} Re1+ $19) 29... Rxd5 {[%emt 0:00:01]} 30. Qxd5+ {[%emt 0:00:01]} Ne6 {[%emt 0:00:01]} 31. f5 $2 {[%emt 0:01:49][%mdl 8192]} (31. Bc3 $1 $11) 31... Nb4 $19 {[%emt 0:00:06]} 32. Qd7 {[%emt 0:00:28]} (32. Qg2 $19 Qf8 33. fxe6 Qxf6 34. e7) 32... Qa8+ {[%emt 0:00:11] Never resign too early! Artfully played by Veinberg.   Weighted Error Value: White=0.68/Black=0.29 (precise)} 0-1

[Event "Israeli Team-ch 2023"]
[Site "Petah Tikva"]
[Date "2023.05.05"]
[Round "9.26"]
[White "Mikhalevski, Alexander"]
[Black "Gorshtein, Ido"]
[Result "0-1"]
[ECO "E08"]
[WhiteElo "2414"]
[BlackElo "2498"]
[Annotator "TA"]
[PlyCount "132"]
[EventDate "2023.01.13"]
[EventCountry "ISR"]
[SourceTitle "playchess.com"]
[Source "ChessBase"]
[SourceQuality "1"]
[TimeControl "40/5400+30:1800+30"]

{[%evp 18,132,21,13,16,15,32,33,26,18,19,7,31,-26,17,24,55,15,15,6,37,0,0,0,0,-36,-39,-22,-12,-18,20,0,0,0,0,0,5,-45,0,0,0,-20,-18,-36,-28,-58,130,-46,-30,-76,-25,-124,-133,-116,-116,-117,-47,-70,-81,-98,0,0,0,0,59,66,62,26,20,22,32,-106,-87,-224,-223,-213,0,0,0,-33,0,-10,0,0,0,0,48,0,19,16,5,0,0,-666,-651,-1081,-1811,-1372,-1715,-1546,-1568,-2549,-2580,-2435,-2335,-2625,-2449,-4694,-4044,-29973,-29976,-29975,-29976,-29973,-29974,-29986,-29987]} 1. d4 {[%emt 0:00:03]} Nf6 {[%emt 0:00:08]} 2. c4 {[%emt 0:00:25]} e6 {[%emt 0:00:07]} 3. Nf3 {[%emt 0:00:10]} d5 {[%emt 0:00:15]} 4. g3 {[%emt 0:00:03]} Bb4+ 5. Bd2 {[%emt 0:04:34]} Be7 {[%emt 0:00:26]} 6. Qc2 {[%emt 0:01:10]} O-O {[%emt 0:00:35]} 7. Bg2 {[%emt 0:00:05]} Nbd7 {[%emt 0:02:52]} 8. O-O {[%emt 0:00:13]} c6 9. Bf4 {[%emt 0:04:40]} Ne4 {[%emt 1:30:37]} 10. Nc3 {[%emt 1:24:07]} g5 {[%emt 0:00:30] E08: Closed Catalan: Main Line: 7 Qc2.} 11. Bc1 {[%emt 0:00:00]} f5 {[%emt 0:00:00]} 12. Ne1 {[%emt 0:01:00][%cal Bf3e1,Be1d3,Bd3f4][%mdl 32]} Bf6 {[%emt 0:00:00] White is slightly better.} 13. e3 {[%emt 0:00:30] [#]} a5 $146 {[%emt 0:01:30]} (13... dxc4 14. Nxe4 fxe4 15. Bxe4 $16) ({Predecessor:} 13... Qe7 14. Nd3 b6 15. b3 Bb7 16. Bb2 Qg7 17. Rac1 Rac8 18. Ne2 c5 19. Rfd1 Rfe8 20. dxc5 bxc5 21. Bxf6 Qxf6 22. Qb2 Qxb2 {½-½ Sviridov,V (2504)-Banusz,T (2616) EU-ch 18th Minsk 2017 (5)}) 14. Nd3 {[%emt 0:00:00]} Rf7 {[%emt 0:00:30]} (14... b6 $5 {[%cal Rc8a6]}) 15. f4 {[%emt 0:01:00]} (15. cxd5 $14 exd5 16. f3) 15... gxf4 {[%emt 0:00:00]} (15... dxc4 16. Ne5 Bxe5 17. Nxe4 $16) 16. Nxf4 {[%emt 0:00:30]} Qe7 {[%emt 0:01:00]} 17. Nxe4 {[%emt 0:00:00]} (17. cxd5 {is interesting.} exd5 18. Ncxd5 cxd5 19. Nxd5 Qd8 20. Rxf5 Nd6 21. Rf4) 17... dxe4 {[%emt 0:00:00]} 18. Bd2 {[%emt 0:00:00]} e5 {[%emt 0:00:00]} 19. dxe5 (19. Ne2 $5 {[%cal Rf1f5]}) 19... Nxe5 {[%emt 0:00:00][%cal Bd7e5,Be5g4,Bg4f6][%mdl 32]} 20. Bc3 Qc5 {[%emt 0:02:00]} 21. Bd4 {[%emt 0:00:00]} Qxc4 {[%emt 0:00:00]} 22. Qd1 {[%emt 0:00:00]} Ng4 {[%emt 0:00:00] White should prevent ...Rd7.} 23. Rc1 {[%emt 0:00:00]} Qxa2 {[%emt 0:00:00]} (23... Qb4 $5 {[%cal Rf7d7]}) 24. h3 {[%emt 0:00:00]} (24. Bh3 $5 {[%cal Rh3g4]} Be6 25. Bxf6 Nxf6 26. Ra1 $11) 24... Bxd4 $1 {[%emt 0:00:00]} 25. Qxd4 {[%emt 0:00:00]} Nf6 {[%emt 0:00:00]} (25... Rd7 $2 26. Qc3 Nxe3 27. Qxe3 Qxb2 28. Bxe4 $18) 26. Rfd1 {[%emt 0:00:00]} (26. Ra1 $5 Qb3 $8 27. Ra3 $11) 26... Bd7 {[%emt 0:00:00]} 27. Qc3 {[%emt 0:00:00] Dodges Qb3} ({White should play} 27. Bf1 $11 b5 28. b4) 27... b5 {[%emt 0:00:00]} 28. Bf1 {[%emt 0:00:00]} (28. Ra1 $5 Qc4 $8 29. Qxc4 (29. Rxa5 Rxa5 30. Qxa5 Re7 $15) 29... bxc4 30. Bf1 $11) 28... Rff8 {[%emt 0:00:00]} 29. Rd6 {[%emt 0:00:05]} (29. Ra1 $5 Qf7 $8 30. Rxa5 $11) 29... Qf7 {[%emt 0:00:00]} 30. Rcd1 {[%emt 0:00:04]} a4 {[%emt 0:00:49]} 31. Qc5 {[%emt 0:02:24][%cal Od6f6]} Qg7 {[%emt 0:00:38]} (31... Qe7 $1 $15) 32. Kh2 $2 {[%emt 0:00:35]} (32. Rxf6 $1 $16 {Nh5 is the strong threat.} Qxg3+ 33. Bg2 Rxf6 34. Nh5) 32... Rf7 {[%emt 0:00:56]} 33. Qd4 {[%emt 0:01:12]} (33. Be2 $11 {is superior.}) 33... Kh8 {[%emt 0:01:44]} (33... Rb8 $17) 34. Rxf6 {[%emt 0:01:13]} Qxf6 $17 {[%emt 0:00:07]} 35. Qxf6+ {[%emt 0:00:03]} Rxf6 {[%emt 0:00:04]} 36. Rxd7 {[%emt 0:00:05] [#]} Kg8 {[%emt 0:01:21]} (36... b4 $1 $17 {Hoping for ...a3.} 37. Bc4 a3) 37. g4 {[%emt 0:00:10]} fxg4 {[%emt 0:00:50]} 38. hxg4 {[%emt 0:00:01]} Rff8 {[%emt 0:00:25]} (38... a3 $17 39. bxa3 Rxa3) 39. Bg2 $11 {[%emt 0:03:30]} Rad8 {[%emt 0:01:26]} 40. Rc7 {[%emt 0:00:18]} (40. Rxd8 $2 Rxd8 41. Kg3 Rd2 42. Bxe4 Rxb2 43. Bxc6 a3 44. Bd5+ Kg7 45. Ne6+ Kf6 $19) 40... Rd2 {[%emt 0:00:52]} ({Better is} 40... Rc8 $11 41. Ra7 Ra8) 41. Kg3 $14 {[%emt 0:32:50][%mdl 1024] White has compensation.} Re8 {[%emt 0:09:46]} (41... Rxb2 $2 42. Bxe4 Rf7 43. Rc8+ Rf8 44. Bxh7+ (44. Rxc6 Re8 $16) 44... Kxh7 45. Rxf8 $18) 42. Nh5 {[%emt 0:00:00]} (42. Bh3 $5 {[%cal Rg4g5]}) 42... Kf8 $1 {[%emt 0:02:13]} (42... Rxb2 $2 43. Nf6+ (43. Rxc6 Kf8 $11) 43... Kf8 44. Nxh7+ Kg8 45. Nf6+ Kf8 46. Nxe8 (46. Bxe4 Re7 $16) (46. Rxc6 Ra8 $16) 46... Kxe8 47. Bxe4 $18) 43. Nf6 {[%emt 0:00:00]} Re7 {[%emt 0:01:36]} 44. Nxh7+ {[%emt 0:00:00]} (44. Rxc6 $14 {stays ahead.} Rxb2 45. Ra6) 44... Ke8 $17 {[%emt 0:00:30] Black is more active.} 45. Rc8+ {[%emt 0:00:00]} (45. Nf6+ $2 Kf7 46. Rxc6 Re6 $17) (45. Rxc6 $17 Rxh7 46. Rb6) 45... Kd7 $19 {[%emt 0:00:15]} 46. Ra8 {[%emt 0:00:00] [#]} Rxb2 $2 {[%emt 0:03:55]} (46... Rxh7 47. Ra7+ (47. Bxe4 $2 Re7 $19) 47... Ke6 48. Rxh7 $18) (46... Kc7 $1 $19 {[%cal Rc7b7]} 47. Nf6 Kb7) 47. Nf6+ $11 {[%emt 0:00:00]} Ke6 {[%emt 0:03:02]} 48. Nxe4 {[%emt 0:00:00]} (48. g5 $5) 48... Rc2 {[%emt 0:00:11]} 49. g5 {[%emt 0:00:00]} Kf5 {[%emt 0:01:41][%cal Oc2g2] Threatens to win with ...Rxg2+!} 50. Bf3 {[%emt 0:00:00]} (50. Rf8+ Ke5 51. Bh3 a3 $15) 50... Ke5 {[%emt 0:01:57]} 51. Nf6 {[%emt 0:00:00]} Rc3 {[%emt 0:02:16]} (51... Rc4 $11 {should be considered.}) 52. Ra6 {[%emt 0:00:23]} (52. Ng4+ $1 $14 Kf5 53. Kh4) 52... Rc7 {[%emt 0:02:24]} 53. Ng4+ {[%emt 0:01:30]} Kf5 $132 {[%emt 0:00:36][%mdl 2048] [#] Black is not keeping still} 54. g6 {[%emt 0:00:01]} a3 {[%emt 0:01:20] aiming for ...b4.} (54... Rg7 55. Bxc6) 55. Bxc6 $2 {[%emt 0:02:19][%mdl 8192]} R3xc6 {[%emt 0:01:35][%mdl 4096] Endgame KRR-KRN} (55... R7xc6 56. g7 Rc8 57. Rf6+ Ke4 58. Rf8 $18) 56. g7 {[%emt 0:00:08]} Rxg7 {[%emt 0:00:04]} (56... Rxa6 57. g8=Q Rc4 58. Qd5+ Kg6 59. Ne5+ Kh6 60. Qh1+ Kg5 61. Nxc4 bxc4 62. Qh4+ Kg6 63. Qxc4 $18) 57. e4+ {[%emt 0:00:08]} Kxe4 {[%emt 0:00:03]} 58. Rxc6 $19 {[%emt 0:00:07] KRN-KR} Ra7 {[%emt 0:00:45]} ({Weaker is} 58... a2 59. Ra6 $11) 59. Nf2+ {[%emt 0:03:19]} Kd5 {[%emt 0:00:44]} 60. Rc1 {[%emt 0:00:33]} a2 {[%emt 0:00:07]} 61. Ra1 {[%emt 0:00:50]} Kd4 {[%emt 0:00:21] ...b4 would be deadly.} 62. Kf3 {[%emt 0:00:26]} b4 {[%emt 0:00:16][%cal Bb5b4,Bb4b3][%mdl 32] ( -> ...Rf7+)} 63. Ke2 {[%emt 0:00:14]} b3 {[%emt 0:00:44] Black mates.} 64. Rd1+ {[%emt 0:00:57]} Kc4 {[%emt 0:00:18]} 65. Rc1+ {[%emt 0:00:24]} Kb5 {[%emt 0:00:10]} 66. Ne4 {[%emt 0:00:32]} Re7 {[%emt 0:01:32] Weighted Error Value: White=0.45/Black=0.23 (precise)} ({Not} 66... a1=B 67. Nd6+ Kb4 68. Rc4+ Ka5 69. Rc5+ Kb6 70. Rb5+ Kc6 71. Rxb3 $15) 0-1